bitfinex-derivatives/quotes_SOLF0:USTF0_20250928
["timestamp","ask_amount","ask_price","bid_price","bid_amount"]
[1759061701053,5.54718804,199.85,199.72,7.44]
[1759061701255,70.0159,199.86,199.72,7.44]
[1759061701455,70.0159,199.86,199.72,21.62]
[1759061701653,4.5017,199.83,199.73,7.44]
[1759061702051,4.5017,199.83,199.74,4.5035]
[1759061702251,4.5019,199.82,199.75,7.44]
[1759061702557,70.0222,199.84,199.75,7.44]
[1759061702947,70.0222,199.84,199.73,4.5037]
[1759061702948,4.5024,199.8,199.73,4.5037]
[1759061703148,4.5024,199.8,199.74,7.44]
[1759061703556,4.5019,199.82,199.75,7.44]
[1759061704552,4.5019,199.82,199.75,11.9433]
[1759061704858,70.0162,199.86,199.75,11.9433]
[1759061704859,4.5022,199.81,199.75,7.44]
[1759061705756,4.5024,199.8,199.74,7.44]
[1759061706855,4.5019,199.82,199.74,4.5035]
[1759061707060,4.5019,199.82,199.75,7.44]
[1759061707359,4.5019,199.82,199.75,11.9433]
[1759061707853,0.61598871,199.88,199.76,7.44]
[1759061708052,0.61598871,199.88,199.8,7.44]
[1759061708658,4.501,199.86,199.8,7.44]
[1759061709550,4.501,199.86,199.8,11.9421]
[1759061709753,4.501,199.86,199.8,7.44]
[1759061711058,5.11658871,199.88,199.8,7.44]
[1759061712763,5.11658871,199.88,199.8,11.9421]
[1759061713959,0.61598871,199.88,199.83,7.91]
[1759061714462,79.31076325,199.93,199.83,7.91]
[1759061715567,4.4996,199.92,199.84,4.5012]
[1759061715760,4.4996,199.92,199.85,7.91]
[1759061717666,79.31076325,199.93,199.85,7.91]
[1759061717667,4.4999,199.91,199.85,7.91]
[1759061717971,4.4999,199.91,199.77,70.0454]
[1759061717972,69.9938,199.92,199.77,74.22]
[1759061718267,69.9938,199.92,199.78,7.91]
[1759061719568,4.5008,199.87,199.79,4.5024]
[1759061719962,4.5008,199.87,199.8,7.91]
[1759061723861,149.30166325,199.93,199.8,7.91]
[1759061723862,4.5011,199.86,199.8,7.91]
[1759061725058,69.9983,199.91,199.8,7.91]
[1759061725059,4.5006,199.88,199.8,7.91]
[1759061725265,70.0079,199.88,199.77,54.14]
[1759061725472,70.0123,199.87,199.76,7.65]
[1759061726372,4.5019,199.82,199.76,7.65]
[1759061726971,70.0219,199.84,199.73,7.65]
[1759061727370,4.5028,199.78,199.73,7.65]
[1759061727562,4.5028,199.78,199.7,5.30128781]
[1759061727763,4.5028,199.78,199.71,7.65]
[1759061728471,4.5024,199.8,199.72,7.65]
[1759061729070,4.5024,199.8,199.74,7.65]
[1759061731669,4.5019,199.82,199.74,4.5035]
[1759061731870,70.0192,199.85,199.75,7.65]
[1759061732978,70.0256,199.83,199.71,7.65]
[1759061734775,4.5028,199.78,199.71,7.65]
[1759061737178,4.5031,199.77,199.71,7.65]
[1759061738876,4.5026,199.79,199.72,7.65]
[1759061740578,70.0324,199.81,199.72,7.65]
[1759061740779,70.0302,199.82,199.72,7.65]
[1759061741385,70.015,199.86,199.72,7.65]
[1759061741883,70.015,199.86,199.74,7.65]
[1759061742582,4.5021,199.81,199.75,4.5032]
[1759061743975,4.5021,199.81,199.74,7.65]
[1759061743976,4.5017,199.83,199.77,7.65]
[1759061744175,75.55128804,199.9,199.77,7.65]
[1759061744481,192.7641,199.9,199.77,7.65]
[1759061745389,4.5015,199.84,199.78,7.65]
[1759061748793,4.5015,199.84,199.79,7.65]
[1759061748992,4.5015,199.84,199.78,4.5026]
[1759061749187,4.5015,199.84,199.79,7.65]
[1759061749386,4.501,199.86,199.8,7.65]
[1759061750894,5.54718804,199.95,199.81,7.65]
[1759061751093,69.9801,199.96,199.79,7.65]
[1759061751390,4.4997,199.92,199.81,7.65]
[1759061752499,4.4997,199.92,199.85,7.65]
[1759061752900,4.4992,199.94,199.85,7.65]
[1759061753890,4.4992,199.94,199.86,4.5008]
[1759061754093,4.4992,199.94,199.87,8.16]
[1759061754992,4.4987,199.96,199.87,8.16]
[1759061755194,0.57079882,199.98,199.87,8.16]
[1759061755592,69.9799,199.96,199.84,8.16]
[1759061755791,69.9843,199.95,199.84,8.16]
[1759061757699,4.4996,199.92,199.84,8.16]
[1759061759802,4.4996,199.92,199.81,20.3]
[1759061759803,69.9944,199.92,199.81,8.16]
[1759061760503,70.0029,199.9,199.81,8.16]
[1759061761299,4.5012,199.85,199.81,8.16]
[1759061762299,4.5012,199.85,199.79,8.16]
[1759061769003,70.0029,199.9,199.8,8.16]
[1759061769004,4.5008,199.87,199.8,8.16]
[1759061771606,4.501,199.86,199.8,8.16]
[1759061771811,70.0029,199.9,199.8,8.16]
[1759061773107,4.5013,199.85,199.79,7.78]
[1759061773411,4.5013,199.85,199.79,12.2824]
[1759061775108,70.0195,199.85,199.72,7.78]
[1759061775313,70.0299,199.82,199.72,7.78]
[1759061775607,70.0326,199.81,199.72,7.78]
[1759061776610,4.5033,199.76,199.72,7.78]
[1759061776808,4.5033,199.76,199.69,368.8846]
[1759061777004,4.5033,199.76,199.71,7.78]
[1759061777209,4.5035,199.75,199.71,7.78]
[1759061777415,70.0412,199.79,199.71,7.78]
[1759061777615,70.0465,199.77,199.71,7.78]
[1759061777810,70.0465,199.77,199.64,14.92]
[1759061778010,70.0465,199.77,199.65,7.78]
[1759061778616,4.504,199.73,199.66,7.78]
[1759061779212,4.5035,199.75,199.67,7.78]
[1759061780016,4.5038,199.74,199.67,4.5051]
[1759061780321,4.5038,199.74,199.68,7.78]
[1759061782623,4.504,199.73,199.65,4.5055]
[1759061782815,4.504,199.73,199.66,7.78]
[1759061783623,4.5035,199.75,199.67,7.68]
[1759061784026,70.0456,199.78,199.67,7.68]
[1759061784519,4.5032,199.76,199.67,12.185]
[1759061784721,70.0466,199.77,199.62,7.68]
[1759061784923,70.0466,199.77,199.63,41.04]
[1759061785121,70.0539,199.75,199.64,7.68]
[1759061785425,70.0571,199.74,199.64,7.68]
[1759061785622,70.0682,199.71,199.57,364.24]
[1759061785823,70.0682,199.71,199.58,7.68]
[1759061786021,70.0682,199.71,199.59,7.68]
[1759061786827,4.5054,199.67,199.59,7.68]
[1759061790823,4.5056,199.66,199.59,7.68]
[1759061793625,4.505,199.68,199.59,7.68]
[1759061793928,4.505,199.68,199.6,7.68]
[1759061794125,84.2371,199.74,199.61,7.68]
[1759061794321,70.0571,199.74,199.62,7.68]
[1759061794520,4.5046,199.7,199.62,7.68]
[1759061794722,4.5046,199.7,199.63,7.68]
[1759061795334,70.0624,199.73,199.63,7.68]
[1759061796524,70.0571,199.74,199.63,7.68]
[1759061797029,4.5044,199.71,199.63,7.68]
[1759061798531,70.0501,199.76,199.63,7.68]
[1759061798532,4.5046,199.7,199.63,7.68]
[1759061798929,70.0584,199.74,199.63,7.68]
[1759061800934,4.5046,199.7,199.64,7.68]
[1759061802132,4.5046,199.7,199.64,4.5057]
[1759061802337,4.5042,199.72,199.65,7.68]
[1759061803534,4.5042,199.72,199.65,12.1855]
[1759061803738,4.5037,199.74,199.66,7.68]
[1759061805528,4.5037,199.74,199.67,4.5051]
[1759061805835,4.5037,199.74,199.68,7.68]
[1759061807236,70.623378,199.77,199.68,7.68]
[1759061808036,70.0499,199.76,199.65,7.68]
[1759061809444,4.5044,199.71,199.65,7.68]
[1759061809740,193.403378,199.77,199.65,7.68]
[1759061810044,70.623378,199.77,199.65,7.68]
[1759061810434,4.5039,199.73,199.67,7.68]
[1759061811840,4.5042,199.72,199.67,7.68]
[1759061812242,4.5042,199.72,199.66,4.5053]
[1759061812543,4.5042,199.72,199.66,12.1853]
[1759061814538,70.623078,199.77,199.62,122.78]
[1759061814539,4.5037,199.74,199.67,4.5051]
[1759061814844,4.5037,199.74,199.68,8.11]
[1759061815740,4.5033,199.76,199.68,8.11]
[1759061816739,4.5028,199.78,199.71,8.11]
[1759061817244,14.71415252,199.83,199.74,8.11]
[1759061817445,70.0221,199.84,199.74,8.11]
[1759061819653,4.5024,199.8,199.74,8.11]
[1759061819847,70.0256,199.83,199.74,8.11]
[1759061820148,70.0221,199.84,199.68,8.11]
[1759061820149,70.0327,199.81,199.68,8.11]
[1759061821049,192.7727,199.81,199.68,8.11]
[1759061821452,70.0327,199.81,199.68,8.11]
[1759061821746,4.5033,199.76,199.68,8.11]
[1759061822546,4.5033,199.76,199.7,4.5044]
[1759061822745,4.5033,199.76,199.7,12.6144]
[1759061823746,4.5033,199.76,199.7,8.11]
[1759061823947,4.5035,199.75,199.7,8.11]
[1759061824242,4.5035,199.75,199.69,8.11]
[1759061824853,4.5031,199.77,199.69,12.6146]
[1759061825154,4.5031,199.77,199.7,8.11]
[1759061826054,4.5033,199.76,199.7,8.11]
[1759061826456,4.5035,199.75,199.7,8.11]
[1759061826652,4.5035,199.75,199.68,8.11]
[1759061827357,4.5035,199.75,199.68,12.6148]
[1759061829855,4.5035,199.75,199.68,8.11]
[1759061830059,70.0536,199.75,199.64,8.11]
[1759061830260,70.0571,199.74,199.64,8.11]
[1759061830457,70.0639,199.72,199.64,8.11]
[1759061830648,70.0639,199.72,199.59,7.78]
[1759061831761,4.5053,199.67,199.62,7.78]
[1759061832160,4.5053,199.67,199.61,4.5065]
[1759061832356,4.5053,199.67,199.62,7.78]
[1759061832557,4.5053,199.67,199.61,4.5065]
[1759061832764,4.5053,199.67,199.62,7.78]
[1759061833261,4.5048,199.69,199.62,7.78]
[1759061833458,70.54962778,199.77,199.62,7.78]
[1759061833658,173.94962778,199.77,199.62,7.78]
[1759061834654,4.5042,199.72,199.66,7.78]
[1759061835663,70.051,199.76,199.66,7.78]
[1759061835867,70.0552,199.75,199.66,7.78]
[1759061836571,4.5047,199.7,199.66,7.78]
[1759061837364,4.5047,199.7,199.65,7.78]
[1759061837569,4.5047,199.7,199.64,4.5057]
[1759061837970,4.5047,199.7,199.65,7.78]
[1759061838263,4.5042,199.72,199.65,4.5055]
[1759061838461,0.50202778,199.77,199.63,7.78]
[1759061839158,70.0502,199.76,199.65,12.2855]
[1759061839465,70.0604,199.73,199.65,7.78]
[1759061839664,70.0604,199.73,199.6,7.78]
[1759061840667,70.0604,199.73,199.61,4.5064]
[1759061841070,70.064,199.72,199.61,4.5064]
[1759061841267,4.5053,199.67,199.61,4.5064]
[1759061841574,70.0677,199.71,199.6,7.78]
[1759061841870,4.5057,199.65,199.59,12.2869]
[1759061846378,87.4404,199.73,199.59,12.2869]
[1759061846379,4.5053,199.67,199.59,7.78]
[1759061847479,4.5055,199.66,199.59,130.16]
[1759061848679,4.5055,199.66,199.59,134.6669]
[1759061850783,4.5057,199.65,199.59,134.6669]
[1759061851474,70.0857,199.66,199.58,7.42]
[1759061851671,70.0885,199.65,199.55,7.42]
[1759061852686,70.0921,199.64,199.54,7.42]
[1759061853686,4.5071,199.59,199.54,7.42]
[1759061853984,4.5071,199.59,199.53,4.5083]
[1759061854179,4.5066,199.61,199.54,7.42]
[1759061856887,70.096,199.63,199.54,7.42]
[1759061857686,70.0885,199.65,199.54,7.42]
[1759061857987,4.5067,199.61,199.54,7.42]
[1759061858285,4.5067,199.61,199.54,11.928]
[1759061858784,4.5069,199.6,199.54,11.928]
[1759061860288,4.5069,199.6,199.54,7.42]
[1759061860988,4.5064,199.62,199.54,7.42]
[1759061861184,70.0824,199.67,199.54,7.42]
[1759061862590,4.5062,199.63,199.56,4.5075]
[1759061862791,4.5062,199.63,199.57,7.42]
[1759061866592,4.5064,199.62,199.57,7.42]
[1759061867094,70.0858,199.66,199.56,7.42]
[1759061868594,4.5055,199.66,199.56,7.42]
[1759061868798,4.5055,199.66,199.57,98.04]
[1759061868991,70.0593,199.74,199.58,7.42]
[1759061869289,70.0522,199.76,199.64,7.42]
[1759061870290,4.504,199.73,199.66,7.42]
[1759061870493,70.0522,199.76,199.66,7.42]
[1759061871395,4.5044,199.71,199.66,7.42]
[1759061871590,4.5044,199.71,199.65,7.42]
[1759061872092,70.0569,199.74,199.63,7.42]
[1759061872492,192.8169,199.74,199.63,7.42]
[1759061873501,192.8169,199.74,199.63,11.926]
[1759061874707,4.5047,199.7,199.63,11.926]
[1759061875103,4.5048,199.69,199.63,11.926]
[1759061875304,4.5048,199.69,199.63,7.42]
[1759061876104,4.5051,199.68,199.63,7.42]
[1759061876296,4.5051,199.68,199.61,4.5064]
[1759061876499,4.5051,199.68,199.62,8.09]
[1759061880304,4.5051,199.68,199.62,12.5962]
[1759061880704,4.5051,199.68,199.62,8.09]
[1759061881510,4.5053,199.67,199.62,8.09]
[1759061881705,4.5053,199.67,199.61,8.09]
[1759061882607,4.5055,199.66,199.61,8.09]
[1759061882905,70.0748,199.69,199.61,8.09]
[1759061883106,70.0792,199.68,199.54,8.09]
[1759061884708,4.5063,199.63,199.57,8.09]
[1759061886407,4.5063,199.63,199.57,12.5973]
[1759061889218,4.5064,199.62,199.55,4.5078]
[1759061889406,4.5064,199.62,199.56,8.09]
[1759061890012,4.5067,199.61,199.56,8.09]
[1759061890219,4.5067,199.61,199.53,4.5083]
[1759061890220,70.0885,199.65,199.54,8.09]
[1759061890416,70.0934,199.64,199.54,8.09]
[1759061890608,70.0991,199.62,199.54,8.09]
[1759061891311,70.0934,199.64,199.54,8.09]
[1759061891720,70.0964,199.63,199.54,8.09]
[1759061892719,4.5073,199.58,199.52,7.53]
[1759061893721,4.5068,199.6,199.52,4.5084]
[1759061893922,4.5068,199.6,199.53,7.53]
[1759061894320,4.5074,199.58,199.5,4.5089]
[1759061894522,4.5074,199.58,199.51,7.53]
[1759061894722,14.8903691,199.62,199.51,7.53]
[1759061894927,70.0934,199.64,199.51,7.53]
[1759061895823,4.5071,199.59,199.51,4.5087]
[1759061896022,70.0957,199.63,199.52,7.53]
[1759061896926,79.0966,199.66,199.48,117.32727999]
[1759061897133,70.0857,199.66,199.5,7.53]
[1759061897433,70.0857,199.66,199.51,7.53]
[1759061898732,4.5066,199.61,199.55,7.53]
[1759061900827,4.5069,199.6,199.53,7.53]
[1759061904738,4.5069,199.6,199.53,4.5082]
[1759061904938,4.5069,199.6,199.54,7.81]
[1759061911442,70.1142,199.58,199.5,7.81]
[1759061911642,70.1142,199.58,199.48,0.68727999]
[1759061912146,1.25264991,199.57,199.48,0.68727999]
[1759061912348,70.1142,199.58,199.48,0.68727999]
[1759061912545,4.5085,199.53,199.48,0.68727999]
[1759061912842,70.1173,199.57,199.47,7.81]
[1759061913039,3.44481878,199.56,199.47,7.81]
[1759061913245,4.509,199.5,199.46,7.81]
[1759061913840,70.1226,199.56,199.46,7.81]
[1759061914040,70.1226,199.56,199.45,372.31]
[1759061914041,4.5089,199.51,199.45,372.31]
[1759061914241,4.69590784,199.55,199.45,372.31]
[1759061914242,70.1258,199.55,199.45,372.31]
[1759061914440,3.44154867,199.54,199.45,372.31]
[1759061914645,70.1258,199.55,199.45,372.31]
[1759061914841,3.44155656,199.54,199.45,372.31]
[1759061915045,3.44132694,199.53,199.45,372.31]
[1759061915241,70.1315,199.53,199.45,372.31]
[1759061915442,70.1315,199.53,199.45,7.81]
[1759061916249,70.65719782,199.57,199.45,7.81]
[1759061916443,4.69124976,199.56,199.45,7.81]
[1759061916648,4.5079,199.56,199.45,7.81]
[1759061916948,4.5079,199.56,199.47,4.5096]
[1759061917142,4.5079,199.56,199.48,7.81]
[1759061918043,0.54029782,199.57,199.48,7.81]
[1759061919543,4.5083,199.54,199.48,7.81]
[1759061921740,85.3273872,199.64,199.47,7.81]
[1759061921944,4.69124353,199.63,199.47,7.81]
[1759061922148,4.69124353,199.62,199.49,7.81]
[1759061922446,70.0805,199.68,199.51,70.1374]
[1759061922640,4.69220744,199.67,199.52,7.81]
[1759061922844,75.62118804,199.7,199.51,70.1374]
[1759061922845,4.5057,199.65,199.57,7.81]
[1759061923047,3.4399161,199.64,199.57,7.81]
[1759061923244,394.76,199.72,199.57,7.81]
[1759061923444,4.5053,199.67,199.57,12.3173]
[1759061923751,3.44102858,199.66,199.59,7.81]
[1759061925250,4.69321013,199.65,199.56,7.81]
[1759061925451,70.0745,199.69,199.56,7.81]
[1759061925651,4.69426853,199.68,199.56,7.81]
[1759061925851,4.69426853,199.67,199.56,7.81]
[1759061926152,4.69426853,199.66,199.56,7.81]
[1759061926346,4.69426758,199.65,199.56,7.81]
[1759061926546,7.94818622,199.64,199.56,7.81]
[1759061926748,4.5061,199.64,199.56,7.81]
[1759061929352,4.5061,199.64,199.56,12.3175]
[1759061931853,3.44583874,199.63,199.56,7.81]
[1759061932057,3.44574566,199.62,199.56,7.81]
[1759061932247,70.0818,199.67,199.56,7.81]
[1759061932451,4.6979275,199.66,199.56,7.81]
[1759061932652,4.6979275,199.65,199.56,7.81]
[1759061932956,4.6979275,199.64,199.56,7.81]
[1759061933157,4.6979275,199.63,199.56,7.81]
[1759061933356,4.6979275,199.62,199.56,7.81]
[1759061933548,4.6979275,199.62,199.52,122.7]
[1759061933549,3.44557785,199.61,199.54,4.508]
[1759061933752,4.5064,199.62,199.55,7.92]
[1759061933952,3.44554173,199.61,199.55,7.92]
[1759061934154,4.5064,199.62,199.55,7.92]
[1759061934456,3.4458356,199.61,199.55,7.92]
[1759061934649,4.5064,199.62,199.55,7.92]
[1759061934847,3.4458356,199.61,199.55,7.92]
[1759061935049,4.5064,199.62,199.55,7.92]
[1759061935255,3.4456862,199.61,199.55,7.92]
[1759061935456,4.5064,199.62,199.55,7.92]
[1759061935662,3.44588107,199.61,199.55,7.92]
[1759061935863,4.5064,199.62,199.55,7.92]
[1759061936063,3.4454801,199.61,199.55,7.92]
[1759061936358,4.5064,199.62,199.55,7.92]
[1759061936557,3.44550799,199.61,199.55,7.92]
[1759061936759,4.5064,199.62,199.55,7.92]
[1759061936960,3.44550799,199.61,199.55,7.92]
[1759061937162,4.5064,199.62,199.55,7.92]
[1759061937359,3.44551048,199.61,199.55,7.92]
[1759061937561,4.5064,199.62,199.55,7.92]
[1759061937757,3.4456413,199.61,199.55,7.92]
[1759061937958,4.5064,199.62,199.55,7.92]
[1759061938157,3.4456413,199.61,199.55,7.92]
[1759061938362,4.5064,199.62,199.55,7.92]
[1759061938661,3.44564465,199.61,199.55,7.92]
[1759061938862,4.5064,199.62,199.55,7.92]
[1759061939064,3.44579443,199.61,199.55,7.92]
[1759061939362,4.5064,199.62,199.55,7.92]
[1759061939562,3.44579824,199.61,199.55,7.92]
[1759061939764,4.5064,199.62,199.55,7.92]
[1759061939965,3.44579824,199.61,199.55,7.92]
[1759061940261,4.5067,199.61,199.55,7.92]
[1759061942162,3.44699936,199.6,199.51,7.92]
[1759061942367,70.0994,199.62,199.51,7.92]
[1759061942662,4.5075,199.57,199.51,7.92]
[1759061942958,4.5075,199.57,199.47,364.74]
[1759061942959,70.1184,199.57,199.47,372.66]
[1759061943165,4.508,199.55,199.47,7.92]
[1759061943362,70.111,199.59,199.47,7.92]
[1759061943659,4.69874898,199.58,199.47,7.92]
[1759061943866,4.69874898,199.57,199.47,7.92]
[1759061944060,70.111,199.59,199.47,7.92]
[1759061944061,4.69874898,199.56,199.47,7.92]
[1759061944258,3.44604407,199.55,199.47,7.92]
[1759061944458,4.5084,199.53,199.47,7.92]
[1759061945358,4.5073,199.58,199.48,7.92]
[1759061946663,4.5073,199.58,199.51,7.92]
[1759061947263,70.1079,199.6,199.51,7.92]
[1759061947469,4.69144021,199.59,199.51,7.92]
[1759061947662,4.69144021,199.58,199.51,7.92]
[1759061947862,70.1079,199.6,199.51,7.92]
[1759061948170,4.69151805,199.59,199.51,7.92]
[1759061948367,5.54718804,199.67,199.51,7.92]
[1759061948561,4.69174329,199.65,199.51,7.92]
[1759061948764,4.69174329,199.64,199.51,7.92]
[1759061948965,4.69174329,199.63,199.51,7.92]
[1759061949162,3.43930072,199.62,199.51,7.92]
[1759061949358,84.84899338,199.68,199.51,7.92]
[1759061949563,4.5059,199.64,199.56,7.92]
[1759061949763,14.76799338,199.68,199.56,7.92]
[1759061949969,4.69189332,199.67,199.56,7.92]
[1759061950167,4.69189332,199.66,199.56,7.92]
[1759061950361,4.69189332,199.65,199.56,7.92]
[1759061950562,3.43966938,199.64,199.56,7.92]
[1759061950759,85.24065818,199.7,199.56,7.92]
[1759061950959,4.69393039,199.69,199.56,7.92]
[1759061951158,173.0636,199.73,199.56,7.92]
[1759061951159,4.69393039,199.68,199.56,7.92]
[1759061951365,4.69393039,199.67,199.56,7.92]
[1759061951561,103.0,199.73,199.57,77.5364]
[1759061951871,4.5044,199.71,199.63,7.42]
[1759061952070,4.69417906,199.7,199.63,7.42]
[1759061952265,7.94608856,199.69,199.63,7.42]
[1759061952474,70.0606,199.73,199.63,7.42]
[1759061952771,4.69316547,199.72,199.63,7.42]
[1759061952969,4.5048,199.69,199.63,7.42]
[1759061954167,4.5043,199.71,199.63,7.42]
[1759061954559,85.27255559,199.74,199.63,7.42]
[1759061954764,4.69152424,199.73,199.63,7.42]
[1759061954970,4.5049,199.69,199.63,7.42]
[1759061955171,70.0673,199.71,199.63,7.42]
[1759061955365,3.43881979,199.7,199.63,7.42]
[1759061955571,70.0673,199.71,199.63,7.42]
[1759061955871,4.5053,199.67,199.64,7.42]
[1759061957668,4.5053,199.67,199.59,88.8868]
[1759061957869,4.5053,199.67,199.6,7.42]
[1759061960171,4.5047,199.69,199.6,7.42]
[1759061964482,4.5051,199.68,199.61,8.02]
[1759061967183,4.70179177,199.67,199.51,8.02]
[1759061967370,4.70179177,199.66,199.53,8.02]
[1759061967577,3.44959345,199.65,199.53,8.02]
[1759061967782,70.0754,199.69,199.53,8.02]
[1759061968086,70.0893,199.65,199.53,8.02]
[1759061968285,3.44948124,199.64,199.53,8.02]
[1759061968587,4.5069,199.6,199.53,8.02]
[1759061970178,70.0987,199.62,199.53,8.02]
[1759061970385,4.70143391,199.61,199.53,8.02]
[1759061970577,3.44899095,199.6,199.49,8.02]
[1759061970786,70.0935,199.64,199.49,8.02]
[1759061970982,4.70179622,199.63,199.49,8.02]
[1759061971189,4.70179622,199.62,199.49,8.02]
[1759061971487,70.0811,199.67,199.49,8.02]
[1759061971682,4.70157086,199.66,199.49,8.02]
[1759061971883,4.70157086,199.65,199.49,8.02]
[1759061972082,4.70157086,199.64,199.49,8.02]
[1759061972283,4.70157086,199.63,199.49,8.02]
[1759061972484,3.44920523,199.62,199.49,8.02]
[1759061972784,70.0811,199.67,199.55,8.02]
[1759061972979,70.0955,199.63,199.49,8.02]
[1759061973282,4.507,199.59,199.5,4.5089]
[1759061973486,4.507,199.59,199.51,8.02]
[1759061973889,4.507,199.59,199.51,12.5286]
[1759061974185,4.507,199.59,199.52,8.02]
[1759061974693,4.5065,199.62,199.53,4.5083]
[1759061974894,4.5065,199.62,199.54,8.02]
[1759061975088,70.0872,199.66,199.54,8.02]
[1759061975289,4.70112201,199.65,199.54,8.02]
[1759061975490,4.70112201,199.64,199.54,8.02]
[1759061975693,4.70112201,199.63,199.54,8.02]
[1759061975891,3.44874166,199.62,199.54,8.02]
[1759061976091,70.0872,199.66,199.54,8.02]
[1759061976293,4.70119111,199.65,199.54,8.02]
[1759061976594,4.5066,199.61,199.54,8.02]
[1759061977093,4.5071,199.59,199.5,4.5089]
[1759061977294,4.5071,199.59,199.51,8.02]
[1759061978686,4.5071,199.59,199.52,8.02]
[1759061981196,48.46,199.67,199.56,4.5076]
[1759061981397,4.70253334,199.66,199.57,8.02]
[1759061981603,4.70253334,199.65,199.57,8.02]
[1759061981898,47.04161246,199.72,199.57,8.02]
[1759061981899,3.45017246,199.64,199.57,8.02]
[1759061982094,4.70244762,199.63,199.51,8.02]
[1759061982289,4.5069,199.6,199.52,4.5084]
[1759061982699,70.0917,199.64,199.53,8.02]
[1759061982996,4.70404087,199.63,199.53,8.02]
[1759061983203,4.70404087,199.62,199.53,8.02]
[1759061983394,3.45161333,199.61,199.53,8.02]
[1759061983595,4.5071,199.59,199.53,8.02]
[1759061984392,70.102,199.61,199.5,8.02]
[1759061984600,3.4513389,199.6,199.5,8.02]
[1759061984792,70.102,199.61,199.5,8.02]
[1759061984993,4.5073,199.58,199.5,12.5289]
[1759061986999,4.5073,199.58,199.51,8.02]
[1759061988003,4.5073,199.58,199.52,4.5085]
[1759061988202,4.5068,199.6,199.53,8.02]
[1759061989505,4.5068,199.6,199.53,4.5082]
[1759061989703,4.5068,199.6,199.54,8.02]
[1759061990403,70.0917,199.64,199.54,8.02]
[1759061990404,4.5071,199.59,199.54,8.02]
[1759061990604,4.5071,199.59,199.49,8.02]
[1759061991604,4.5071,199.59,199.54,8.02]
[1759061991903,4.5066,199.61,199.54,8.02]
[1759061993606,4.5066,199.61,199.54,12.528]
[1759061993801,128.58358804,199.69,199.53,70.129]
[1759061993996,4.70664441,199.68,199.54,7.42]
[1759061994200,4.70664441,199.67,199.55,96.48]
[1759061994400,4.70664441,199.66,199.56,7.42]
[1759061994604,3.4543466,199.65,199.56,7.42]
[1759061994804,70.0764,199.69,199.56,7.42]
[1759061995006,4.5054,199.66,199.58,4.507]
[1759061995206,3.4545485,199.65,199.59,7.42]
[1759061995408,70.0705,199.7,199.59,7.42]
[1759061995607,4.70675586,199.69,199.59,7.42]
[1759061995802,4.70675586,199.68,199.59,7.42]
[1759061996002,4.5057,199.65,199.59,4.5068]
[1759061996307,4.5057,199.65,199.6,7.42]
[1759061996505,4.5057,199.65,199.59,11.9268]